[Event "Belt and Road Women 2024"]
[Site "Yuecheng Shaoxing"]
[Date "2024.08.02"]
[Round "9.11"]
[White "Beydullayeva, Govhar"]
[Black "Chen, Yining"]
[Result "1/2-1/2"]
[ECO "D52"]
[WhiteElo "2417"]
[BlackElo "2300"]
[Annotator "RC"]
[PlyCount "148"]
[EventDate "2024.08.01"]
[EventType "swiss"]
[EventCountry "CHN"]
[SourceTitle "playchess.com"]
[Source "ChessBase"]
[SourceQuality "1"]
[TimeControl "5400+30"]

1. d4 {[%emt 0:00:02]} d5 {[%emt 0:00:05]} 2. c4 {[%emt 0:00:03]} c6 {[%emt 0:00:05]} 3. Nf3 {[%emt 0:00:03]} Nf6 {[%emt 0:00:08]} 4. Nc3 {[%emt 0:00:08]} e6 {[%emt 0:00:19]} 5. Bg5 {[%emt 0:00:07]} Nbd7 {[%emt 0:00:49]} 6. e3 {[%emt 0:00:09]} Qa5 {[%emt 0:00:35]} 7. cxd5 {[%emt 0:01:55]} Nxd5 {[%emt 0:00:28]} 8. Qd2 {[%emt 0:00:10]} Bb4 {[%emt 0:00:28]} 9. Rc1 {[%emt 0:00:09]} Nxc3 {[%emt 0:00:21]} 10. bxc3 {[%emt 0:00:04]} Ba3 {[%emt 0:00:08]} 11. Rb1 {[%emt 0:00:15]} b6 {[%emt 0:00:20]} 12. Qd3 {[%emt 0:01:59]} h6 {[%emt 0:09:46]} 13. Bh4 {[%emt 0:03:32]} O-O {[%emt 0:06:55]} 14. Be2 {[%emt 0:02:18]} Re8 {[%emt 0:03:27]} 15. O-O {[%emt 0:04:39]} Bf8 {[%emt 0:02:23]} 16. e4 {[%emt 0:02:05]} Bb7 {[%emt 0:02:04]} 17. e5 {[%emt 0:22:50]} Rac8 {[%emt 0:10:47]} 18. Rfd1 {[%emt 0:03:20]} Rc7 {[%emt 0:05:45]} 19. c4 {[%emt 0:13:24]} c5 {[%emt 0:09:52]} 20. d5 {[%emt 0:01:38]} exd5 {[%emt 0:00:16]} 21. cxd5 {[%emt 0:01:50]} Nxe5 {[%emt 0:04:50]} 22. Nxe5 {[%emt 0:04:31]} Rxe5 {[%emt 0:00:07]} 23. Qg3 {[%emt 0:00:07]} Rxe2 {[%emt 0:04:02]} 24. Qxc7 {[%emt 0:00:08]} Bxd5 {[%emt 0:00:27]} 25. Bg3 {[%emt 0:09:48]} c4 {[%emt 0:14:24]} 26. Qd8 {[%emt 0:12:33]} c3 {[%emt 0:06:23]} 27. Rxd5 {[%emt 0:02:37]} c2 {[%emt 0:00:16]} 28. Rf1 {[%emt 0:00:04]} c1=Q {[%emt 0:04:53]} 29. Rxa5 {[%emt 0:00:16]} Re1 {[%emt 0:00:11]} 30. Qd3 {[%emt 0:02:03]} bxa5 {[%emt 0:00:44]} 31. a4 {[%emt 0:00:36]} Rxf1+ {[%emt 0:04:13]} 32. Qxf1 {[%emt 0:00:03]} Qc2 {[%emt 0:00:13]} 33. Qa1 {[%emt 0:00:08]} Be7 {[%emt 0:01:08]} 34. h3 {[%emt 0:01:44]} Bf6 {[%emt 0:00:36]} 35. Qa3 {[%emt 0:01:49]} h5 {[%emt 0:01:11]} 36. h4 {[%emt 0:03:46]} Qb1+ {[%emt 0:00:40]} 37. Kh2 {[%emt 0:00:07]} Qb4 {[%emt 0:00:06]} 38. Qc1 {[%emt 0:02:01]} g6 {[%emt 0:01:57]} 39. Qc6 {[%emt 0:01:20]} Kg7 {[%emt 0:01:30]} 40. Kg1 {[%emt 0:00:30]} Qb6 {[%emt 0:03:23]} 41. Qc4 {[%emt 0:00:23]} Qd4 {[%emt 0:00:24]} 42. Qb5 {[%emt 0:02:37]} Qb4 {[%emt 0:00:58]} 43. Qc6 {[%emt 0:00:14]} Qe7 {[%emt 0:01:01]} 44. Qc4 {[%emt 0:00:26]} Qe6 {[%emt 0:02:05]} 45. Qb5 {[%emt 0:00:22]} Qf5 {[%emt 0:00:55]} 46. Qc6 {[%emt 0:03:46]} g5 {[%emt 0:00:52]} 47. hxg5 {[%emt 0:00:20]} Bxg5 {[%emt 0:00:08]} 48. Bd6 {[%emt 0:00:28]} Bf6 {[%emt 0:00:47]} 49. Qe8 {[%emt 0:00:29]} Qe6 {[%emt 0:00:38]} 50. Qxe6 {[%emt 0:00:29]} fxe6 {[%emt 0:00:02]} 51. Bc7 {[%emt 0:00:07]} Bc3 {[%emt 0:00:09]} 52. Kf1 {[%emt 0:00:37]} Kf6 {[%emt 0:00:08]} 53. Ke2 {[%emt 0:00:12]} Kf5 {[%emt 0:00:34]} 54. Kd3 {[%emt 0:01:10]} Bb4 {[%emt 0:00:05]} 55. Bd8 {[%emt 0:00:50]} Ke5 {[%emt 0:00:18]} 56. f3 {[%emt 0:00:29]} Kf5 {[%emt 0:00:25]} 57. Ke3 {[%emt 0:00:32]} Bc5+ {[%emt 0:00:42]} 58. Kd3 {[%emt 0:00:08]} Bb6 {[%emt 0:00:36]} 59. Bh4 {[%emt 0:00:05]} Kf4 {[%emt 0:00:27]} 60. Be1 {[%emt 0:00:21]} Bd8 {[%emt 0:01:05]} 61. Ke2 {[%emt 0:00:31]} h4 {[%emt 0:00:52]} 62. Bf2 {[%emt 0:00:15]} a6 {[%emt 0:00:13]} 63. Be1 {[%emt 0:00:28]} e5 {[%emt 0:00:24]} 64. Bc3 {[%emt 0:01:24]} e4 {[%emt 0:00:52]} 65. fxe4 {[%emt 0:00:44]} Kxe4 {[%emt 0:00:02]} 66. Bb2 {[%emt 0:00:17]} Kf4 {[%emt 0:00:48]} 67. Bc3 {[%emt 0:00:14]} Bc7 {[%emt 0:00:57]} 68. Be1 {[%emt 0:00:21]} Kg4 {[%emt 0:00:12]} 69. Bc3 {[%emt 0:00:13]} Bb6 {[%emt 0:01:07]} 70. Bd2 {[%emt 0:00:11]} Bd8 {[%emt 0:00:12]} 71. Be1 {[%emt 0:00:29]} Kf4 {[%emt 0:00:05]} 72. Bd2+ {[%emt 0:00:53]} Ke4 {[%emt 0:00:18]} 73. Bc3 {[%emt 0:00:04]} Kf4 {[%emt 0:01:00]} 74. Bd2+ {[%emt 0:00:09]} Ke4 {[%emt 0:00:48]} 1/2-1/2

[Event "Belt and Road Women 2024"]
[Site "Yuecheng Shaoxing"]
[Date "2024.08.02"]
[Round "9.12"]
[White "Li, Xueyi"]
[Black "Wang, Yu A."]
[Result "1/2-1/2"]
[ECO "E11"]
[WhiteElo "2209"]
[BlackElo "2234"]
[Annotator "RC"]
[PlyCount "92"]
[EventDate "2024.08.01"]
[EventType "swiss"]
[EventCountry "CHN"]
[SourceTitle "playchess.com"]
[Source "ChessBase"]
[SourceQuality "1"]
[TimeControl "5400+30"]

1. d4 {[%emt 0:00:06]} Nf6 {[%emt 0:00:01]} 2. c4 {[%emt 0:00:43]} e6 {[%emt 0:00:02]} 3. g3 {[%emt 0:00:08]} Bb4+ {[%emt 0:00:08]} 4. Bd2 {[%emt 0:00:33]} a5 {[%emt 0:00:07]} 5. Bg2 {[%emt 0:00:06]} d5 {[%emt 0:00:55]} 6. Qc2 {[%emt 0:02:07]} O-O {[%emt 0:00:22]} 7. Nf3 {[%emt 0:00:12]} c5 {[%emt 0:01:06]} 8. O-O {[%emt 0:07:49]} cxd4 {[%emt 0:14:00]} 9. Bxb4 {[%emt 0:09:53]} axb4 {[%emt 0:00:02]} 10. Nxd4 {[%emt 0:01:33]} Nc6 {[%emt 0:09:56]} 11. Nb3 {[%emt 0:02:41]} Qc7 {[%emt 0:16:37]} 12. cxd5 {[%emt 0:02:14]} exd5 {[%emt 0:01:33]} 13. N1d2 {[%emt 0:00:33]} Bg4 {[%emt 0:06:40]} 14. Nf3 {[%emt 0:01:05]} Rfe8 {[%emt 0:00:14]} 15. e3 {[%emt 0:06:52]} Rec8 {[%emt 0:04:03]} 16. Rfc1 {[%emt 0:04:54]} Qb6 {[%emt 0:02:27]} 17. Qc5 {[%emt 0:03:54]} Qxc5 {[%emt 0:01:05]} 18. Nxc5 {[%emt 0:00:24]} Bxf3 {[%emt 0:05:01]} 19. Bxf3 {[%emt 0:00:09]} Ne5 {[%emt 0:00:23]} 20. Be2 {[%emt 0:01:45]} g6 {[%emt 0:01:53]} 21. f3 {[%emt 0:21:11]} Rc6 {[%emt 0:12:39]} 22. Nb3 {[%emt 0:05:58]} Rxc1+ {[%emt 0:05:13]} 23. Nxc1 {[%emt 0:00:06]} Nc4 {[%emt 0:00:34]} 24. Kf2 {[%emt 0:01:12]} Nxb2 {[%emt 0:03:16]} 25. Rb1 {[%emt 0:01:03]} Rc8 {[%emt 0:01:24]} 26. Rxb2 {[%emt 0:04:46]} Rxc1 {[%emt 0:00:01]} 27. Rxb4 {[%emt 0:00:06]} Rc2 {[%emt 0:00:12]} 28. a4 {[%emt 0:01:16]} Ra2 {[%emt 0:00:11]} 29. Rd4 {[%emt 0:00:32]} h5 {[%emt 0:02:28]} 30. h3 {[%emt 0:02:35]} Rb2 {[%emt 0:02:11]} 31. e4 {[%emt 0:03:29]} dxe4 {[%emt 0:01:07]} 32. fxe4 {[%emt 0:01:01]} Kf8 {[%emt 0:02:03]} 33. e5 {[%emt 0:00:39]} Nh7 {[%emt 0:00:58]} 34. h4 {[%emt 0:02:52]} Ke7 {[%emt 0:00:05]} 35. Ke1 {[%emt 0:01:13]} Nf8 {[%emt 0:01:10]} 36. Bb5 {[%emt 0:00:40]} Rb3 {[%emt 0:01:23]} 37. Kf2 {[%emt 0:04:32]} Rb2+ {[%emt 0:00:19]} 38. Ke3 {[%emt 0:01:40]} Rb3+ {[%emt 0:00:08]} 39. Rd3 {[%emt 0:01:39]} Rxd3+ {[%emt 0:04:45]} 40. Kxd3 {[%emt 0:00:05]} f6 {[%emt 0:00:05]} 41. exf6+ {[%emt 0:02:50]} Kxf6 {[%emt 0:00:01]} 42. Kd4 {[%emt 0:00:31]} Ne6+ {[%emt 0:00:12]} 43. Kd5 {[%emt 0:00:40]} b6 {[%emt 0:00:00]} 44. Kc6 {[%emt 0:00:38]} Nc5 {[%emt 0:00:22]} 45. Kxb6 {[%emt 0:00:24]} Nxa4+ {[%emt 0:00:04]} 46. Bxa4 {[%emt 0:00:06]} g5 {[%emt 0:00:01]} 1/2-1/2

[Event "Belt and Road Women 2024"]
[Site "Yuecheng Shaoxing"]
[Date "2024.08.02"]
[Round "9.13"]
[White "Kairbekova, Amina"]
[Black "Gu, Xiaobing"]
[Result "1/2-1/2"]
[ECO "B86"]
[WhiteElo "2244"]
[BlackElo "2135"]
[Annotator "RC"]
[PlyCount "170"]
[EventDate "2024.08.01"]
[EventType "swiss"]
[EventCountry "CHN"]
[SourceTitle "playchess.com"]
[Source "ChessBase"]
[SourceQuality "1"]
[TimeControl "5400+30"]

1. e4 {[%emt 0:00:01]} c5 {[%emt 0:00:57]} 2. Nf3 {[%emt 0:00:09]} d6 {[%emt 0:00:05]} 3. d4 {[%emt 0:00:04]} cxd4 {[%emt 0:00:03]} 4. Nxd4 {[%emt 0:00:06]} Nf6 {[%emt 0:00:04]} 5. Nc3 {[%emt 0:00:05]} a6 {[%emt 0:00:03]} 6. Bc4 {[%emt 0:00:06]} e6 {[%emt 0:00:08]} 7. Be3 {[%emt 0:00:06]} Nbd7 {[%emt 0:03:13]} 8. Bxe6 {[%emt 0:00:26]} fxe6 {[%emt 0:00:10]} 9. Nxe6 {[%emt 0:00:05]} Qa5 {[%emt 0:00:08]} 10. Nxf8 {[%emt 0:00:08]} Nxf8 {[%emt 0:01:18]} 11. Qxd6 {[%emt 0:00:08]} Nxe4 {[%emt 0:01:41]} 12. Qd5 {[%emt 0:00:07]} Qxd5 {[%emt 0:01:36]} 13. Nxd5 {[%emt 0:00:06]} Ne6 {[%emt 0:00:07]} 14. Nb6 {[%emt 0:00:08]} Rb8 {[%emt 0:00:09]} 15. O-O-O {[%emt 0:00:13]} Kf7 {[%emt 0:08:14]} 16. f3 {[%emt 0:00:14]} Nf6 {[%emt 0:00:40]} 17. h4 {[%emt 0:00:43]} h5 {[%emt 0:03:46]} 18. Rhe1 {[%emt 0:05:31]} Rg8 {[%emt 0:22:48]} 19. Bf2 {[%emt 0:23:30]} Nf4 {[%emt 0:07:04]} 20. Bg3 {[%emt 0:20:49]} Nxg2 {[%emt 0:00:06]} 21. Bxb8 {[%emt 0:00:27]} Nxe1 {[%emt 0:00:06]} 22. Rxe1 {[%emt 0:00:02]} Be6 {[%emt 0:00:24]} 23. Bg3 {[%emt 0:02:40]} g5 {[%emt 0:02:30]} 24. Na4 {[%emt 0:12:18]} Bd5 {[%emt 0:06:29]} 25. Rf1 {[%emt 0:02:44]} gxh4 {[%emt 0:09:55]} 26. Bxh4 {[%emt 0:00:04]} Rg2 {[%emt 0:00:12]} 27. Nc5 {[%emt 0:00:19]} Rh2 {[%emt 0:01:12]} 28. Bg5 {[%emt 0:00:05]} Rg2 {[%emt 0:05:48]} 29. Bf4 {[%emt 0:05:46]} Kg6 {[%emt 0:09:30]} 30. Nd3 {[%emt 0:00:56]} Kf5 {[%emt 0:00:30]} 31. b3 {[%emt 0:00:30]} h4 {[%emt 0:03:54]} 32. Bd6 {[%emt 0:03:35]} Nh5 {[%emt 0:01:38]} 33. Rh1 {[%emt 0:03:14]} Bxf3 {[%emt 0:00:22]} 34. Rxh4 {[%emt 0:01:17]} Ke6 {[%emt 0:00:57]} 35. Bc5 {[%emt 0:00:06]} Rg5 {[%emt 0:02:33]} 36. Be3 {[%emt 0:00:05]} Rf5 {[%emt 0:00:00]} 37. Rb4 {[%emt 0:02:14]} Nf6 {[%emt 0:00:22]} 38. Nc5+ {[%emt 0:00:24]} Ke7 {[%emt 0:10:46]} 39. Kb2 {[%emt 0:00:57]} Bc6 {[%emt 0:00:00]} 40. Nxb7 {[%emt 0:01:05]} Nd7 {[%emt 0:04:48]} 41. Bd2 {[%emt 0:13:55]} a5 {[%emt 0:01:35]} 42. Nxa5 {[%emt 0:01:29]} Rxa5 {[%emt 0:00:48]} 43. Rh4 {[%emt 0:00:49]} Rf5 {[%emt 0:00:39]} 44. Be3 {[%emt 0:01:01]} Re5 {[%emt 0:00:00]} 45. Rh3 {[%emt 0:02:51]} Rf5 {[%emt 0:00:00]} 46. a4 {[%emt 0:00:52]} Nf6 {[%emt 0:00:00]} 47. Ka3 {[%emt 0:00:00]} Ne4 {[%emt 0:00:00]} 48. Rh7+ Kd6 {[%emt 0:00:42]} 49. Bb6 {[%emt 0:01:06]} Bd7 {[%emt 0:01:32]} 50. Bd4 {[%emt 0:00:41]} Kc6 {[%emt 0:00:00]} 51. b4 {[%emt 0:00:56]} Rf3+ {[%emt 0:00:00]} 52. Kb2 {[%emt 0:00:08]} Bf5 {[%emt 0:00:00]} 53. Rh6+ {[%emt 0:00:49]} Kd5 {[%emt 0:00:00]} 54. Ba7 {[%emt 0:00:46]} Nd6 {[%emt 0:00:00]} 55. Rh4 {[%emt 0:00:30]} Nc4+ {[%emt 0:00:00]} 56. Ka2 {[%emt 0:00:29]} Rc3 {[%emt 0:00:00]} 57. Rd4+ {[%emt 0:00:31]} Ke5 {[%emt 0:00:02]} 58. Rd8 {[%emt 0:00:31]} Ra3+ {[%emt 0:00:00]} 59. Kb1 {[%emt 0:00:03]} Rb3+ {[%emt 0:00:00]} 60. Kc1 Rxb4 61. Ra8 {[%emt 0:01:17]} Rb7 {[%emt 0:00:00]} 62. a5 {[%emt 0:00:37]} Rh7 {[%emt 0:00:00]} 63. Kd1 {[%emt 0:00:28]} Rh1+ {[%emt 0:00:00]} 64. Ke2 {[%emt 0:00:03]} Rh2+ {[%emt 0:00:00]} 65. Bf2 {[%emt 0:00:49]} Bg4+ {[%emt 0:00:00]} 66. Kf1 {[%emt 0:00:26]} Nd2+ {[%emt 0:01:03]} 67. Kg1 {[%emt 0:00:12]} Nf3+ {[%emt 0:00:03]} 68. Kf1 {[%emt 0:00:03]} Bh3+ {[%emt 0:00:29]} 69. Ke2 {[%emt 0:00:05]} Nd4+ {[%emt 0:00:55]} 70. Ke3 {[%emt 0:00:22]} Nf5+ {[%emt 0:00:51]} 71. Ke2 {[%emt 0:00:54]} Kf4 {[%emt 0:01:30]} 72. Rg8 {[%emt 0:01:55]} Bg2 {[%emt 0:00:26]} 73. a6 {[%emt 0:00:38]} Bf3+ {[%emt 0:01:30]} 74. Ke1 {[%emt 0:00:23]} Rh7 {[%emt 0:01:01]} 75. Kd2 {[%emt 0:00:00]} Rh2 {[%emt 0:00:00]} 76. Ke1 {[%emt 0:00:00]} Rh6 {[%emt 0:00:03]} 77. a7 {[%emt 0:00:43]} Rd6 {[%emt 0:00:25]} 78. Kf1 {[%emt 0:00:55]} Rd1+ {[%emt 0:00:14]} 79. Be1 {[%emt 0:00:15]} Ra1 {[%emt 0:00:11]} 80. Kf2 {[%emt 0:00:39]} Bc6 {[%emt 0:01:15]} 81. Bd2+ {[%emt 0:00:00]} Ke4 {[%emt 0:00:31]} 82. Rc8 {[%emt 0:01:13]} Kd5 {[%emt 0:00:23]} 83. c4+ {[%emt 0:00:12]} Kc5 {[%emt 0:00:48]} 84. a8=Q {[%emt 0:00:36]} Rxa8 {[%emt 0:00:06]} 85. Rxa8 {[%emt 0:00:05]} Bxa8 {[%emt 0:00:11]} 1/2-1/2

[Event "Belt and Road Women 2024"]
[Site "Yuecheng Shaoxing"]
[Date "2024.08.02"]
[Round "9.14"]
[White "Yang, Yijing"]
[Black "Wang, Chuqiao"]
[Result "1-0"]
[ECO "D35"]
[WhiteElo "2022"]
[BlackElo "2278"]
[Annotator "RC"]
[PlyCount "69"]
[EventDate "2024.08.01"]
[EventType "swiss"]
[EventCountry "CHN"]
[SourceTitle "playchess.com"]
[Source "ChessBase"]
[SourceQuality "1"]
[TimeControl "5400+30"]

1. d4 {[%emt 0:00:06]} Nf6 {[%emt 0:00:10]} 2. c4 {[%emt 0:00:06]} e6 {[%emt 0:00:06]} 3. Nc3 {[%emt 0:00:05]} d5 {[%emt 0:00:13]} 4. cxd5 {[%emt 0:00:08]} exd5 {[%emt 0:00:10]} 5. Bg5 {[%emt 0:00:08]} c6 {[%emt 0:00:15]} 6. e3 {[%emt 0:00:07]} h6 {[%emt 0:00:25]} 7. Bh4 {[%emt 0:00:08]} Be7 {[%emt 0:00:05]} 8. Bd3 {[%emt 0:00:10]} O-O {[%emt 0:00:13]} 9. Bg3 {[%emt 0:00:09]} Bd6 {[%emt 0:13:29]} 10. Nge2 {[%emt 0:06:51]} Re8 {[%emt 0:02:16]} 11. O-O {[%emt 0:07:22]} a5 {[%emt 0:01:19]} 12. Qd2 {[%emt 0:05:15]} Na6 {[%emt 0:03:24]} 13. f3 {[%emt 0:04:19]} Bxg3 {[%emt 0:00:51]} 14. Nxg3 {[%emt 0:01:26]} Be6 {[%emt 0:12:25]} 15. Rae1 {[%emt 0:09:21]} b5 {[%emt 0:02:19]} 16. Bb1 {[%emt 0:03:28]} Qb6 {[%emt 0:01:14]} 17. Nce2 {[%emt 0:05:42]} c5 {[%emt 0:06:59]} 18. Nf4 {[%emt 0:02:17]} Nb4 {[%emt 0:05:14]} 19. a3 {[%emt 0:13:22]} Nc6 {[%emt 0:00:58]} 20. Qc2 {[%emt 0:00:34]} cxd4 {[%emt 0:22:52]} 21. Nfh5 {[%emt 0:00:28]} dxe3 {[%emt 0:06:24]} 22. Nxf6+ {[%emt 0:00:07]} gxf6 {[%emt 0:00:04]} 23. Qh7+ {[%emt 0:00:08]} Kf8 {[%emt 0:00:03]} 24. Qxh6+ {[%emt 0:00:12]} Ke7 {[%emt 0:00:03]} 25. Rxe3 {[%emt 0:01:31]} Ne5 {[%emt 0:02:20]} 26. Kh1 {[%emt 0:05:50]} Rh8 {[%emt 0:02:48]} 27. Qf4 {[%emt 0:00:26]} Rh4 {[%emt 0:01:58]} 28. Qxh4 {[%emt 0:08:14]} Qxe3 {[%emt 0:00:06]} 29. f4 {[%emt 0:00:25]} Nd3 {[%emt 0:08:08]} 30. Bxd3 {[%emt 0:02:12]} Qxd3 {[%emt 0:01:27]} 31. f5 {[%emt 0:00:06]} Bd7 {[%emt 0:04:20]} 32. Re1+ {[%emt 0:00:13]} Kd6 {[%emt 0:00:16]} 33. Qf4+ {[%emt 0:00:25]} Kc6 {[%emt 0:01:23]} 34. Rc1+ {[%emt 0:00:05]} Kb6 {[%emt 0:00:22]} 35. Qd6+ {[%emt 0:00:08]} 1-0

[Event "Belt and Road Women 2024"]
[Site "Yuecheng Shaoxing"]
[Date "2024.08.02"]
[Round "9.15"]
[White "Soumya, Swaminathan"]
[Black "Velikic, Adela"]
[Result "1/2-1/2"]
[ECO "B81"]
[WhiteElo "2258"]
[BlackElo "2290"]
[Annotator "RC"]
[PlyCount "86"]
[EventDate "2024.08.01"]
[EventType "swiss"]
[EventCountry "CHN"]
[SourceTitle "playchess.com"]
[Source "ChessBase"]
[SourceQuality "1"]
[TimeControl "5400+30"]

1. e4 {[%emt 0:00:04]} c5 {[%emt 0:00:50]} 2. Nf3 {[%emt 0:00:06]} d6 {[%emt 0:00:07]} 3. d4 {[%emt 0:00:10]} cxd4 {[%emt 0:00:09]} 4. Nxd4 {[%emt 0:00:03]} Nf6 {[%emt 0:00:08]} 5. Nc3 {[%emt 0:00:05]} a6 {[%emt 0:00:04]} 6. h3 {[%emt 0:00:36]} e6 {[%emt 0:00:09]} 7. g4 {[%emt 0:00:05]} h6 {[%emt 0:00:07]} 8. Bg2 {[%emt 0:01:55]} Be7 {[%emt 0:01:03]} 9. h4 {[%emt 0:02:41]} d5 {[%emt 0:15:29]} 10. exd5 {[%emt 0:01:44]} Nxd5 {[%emt 0:00:57]} 11. Nxd5 {[%emt 0:03:06]} exd5 {[%emt 0:00:06]} 12. Nf5 {[%emt 0:13:37]} Bxf5 {[%emt 0:04:19]} 13. gxf5 {[%emt 0:00:02]} Nc6 {[%emt 0:13:34]} 14. Qxd5 {[%emt 0:16:28]} Qxd5 {[%emt 0:16:57]} 15. Bxd5 {[%emt 0:00:03]} O-O-O {[%emt 0:01:14]} 16. Be4 {[%emt 0:21:18]} Rhe8 {[%emt 0:07:28]} 17. f3 {[%emt 0:00:06]} Ne5 {[%emt 0:09:25]} 18. Kf2 {[%emt 0:04:45]} Nc4 {[%emt 0:06:07]} 19. Bf4 {[%emt 0:14:36]} Bf6 {[%emt 0:03:17]} 20. Kg3 {[%emt 0:09:07]} Nxb2 {[%emt 0:04:19]} 21. a4 {[%emt 0:00:16]} Re7 {[%emt 0:06:27]} 22. a5 {[%emt 0:01:52]} Rd4 {[%emt 0:02:30]} 23. Rhb1 {[%emt 0:01:22]} Na4 {[%emt 0:05:29]} 24. Ra3 {[%emt 0:01:33]} Rc4 {[%emt 0:00:22]} 25. Bd3 {[%emt 0:06:38]} Bxh4+ {[%emt 0:00:35]} 26. Kxh4 {[%emt 0:00:27]} Rxf4+ {[%emt 0:00:28]} 27. Kg3 {[%emt 0:00:08]} Rd4 {[%emt 0:00:23]} 28. f6 {[%emt 0:00:32]} gxf6 {[%emt 0:00:24]} 29. Rh1 {[%emt 0:00:45]} Re5 {[%emt 0:01:24]} 30. Rxh6 {[%emt 0:00:28]} Kd7 {[%emt 0:01:00]} 31. Rxf6 {[%emt 0:00:40]} Ke7 {[%emt 0:00:32]} 32. Rf5 {[%emt 0:00:32]} Rxf5 {[%emt 0:00:32]} 33. Bxf5 {[%emt 0:00:02]} Nc5 {[%emt 0:00:22]} 34. Ra1 {[%emt 0:01:03]} Kf6 {[%emt 0:00:23]} 35. Bh7 {[%emt 0:00:33]} Kg7 {[%emt 0:00:46]} 36. Bf5 {[%emt 0:00:28]} Kf6 {[%emt 0:00:30]} 37. Bh7 {[%emt 0:00:02]} Kg5 {[%emt 0:00:26]} 38. Re1 {[%emt 0:00:26]} Rd5 {[%emt 0:00:25]} 39. Re7 {[%emt 0:00:10]} Kf6 {[%emt 0:00:32]} 40. Rc7 {[%emt 0:00:06]} Rg5+ {[%emt 0:00:34]} 41. Kf2 {[%emt 0:00:36]} Rh5 {[%emt 0:00:32]} 42. Be4 {[%emt 0:00:19]} Nxe4+ {[%emt 0:00:29]} 43. fxe4 {[%emt 0:00:02]} Ke5 {[%emt 0:01:02]} 1/2-1/2

[Event "Belt and Road Women 2024"]
[Site "Yuecheng Shaoxing"]
[Date "2024.08.02"]
[Round "9.16"]
[White "Hu, Jiani"]
[Black "Bai, Xue"]
[Result "0-1"]
[ECO "C92"]
[WhiteElo "2148"]
[BlackElo "2114"]
[Annotator "RC"]
[PlyCount "136"]
[EventDate "2024.08.01"]
[EventType "swiss"]
[EventCountry "CHN"]
[SourceTitle "playchess.com"]
[Source "ChessBase"]
[SourceQuality "1"]
[TimeControl "5400+30"]

1. e4 {[%emt 0:00:02]} e5 {[%emt 0:00:04]} 2. Nf3 {[%emt 0:00:06]} Nc6 {[%emt 0:00:04]} 3. Bb5 {[%emt 0:00:06]} a6 {[%emt 0:00:04]} 4. Ba4 {[%emt 0:00:06]} Nf6 {[%emt 0:00:05]} 5. O-O {[%emt 0:00:08]} Be7 {[%emt 0:00:04]} 6. Re1 {[%emt 0:00:04]} b5 {[%emt 0:00:04]} 7. Bb3 {[%emt 0:00:04]} d6 {[%emt 0:00:05]} 8. c3 {[%emt 0:00:08]} O-O {[%emt 0:00:05]} 9. h3 {[%emt 0:00:04]} Bb7 {[%emt 0:00:04]} 10. d4 {[%emt 0:00:05]} Re8 {[%emt 0:00:04]} 11. Nbd2 {[%emt 0:00:06]} Bf8 {[%emt 0:00:05]} 12. Bc2 {[%emt 0:00:13]} g6 {[%emt 0:03:44]} 13. a3 {[%emt 0:00:09]} Bg7 {[%emt 0:00:08]} 14. d5 {[%emt 0:00:38]} Nb8 {[%emt 0:00:09]} 15. Nf1 {[%emt 0:00:30]} c6 {[%emt 0:02:11]} 16. dxc6 {[%emt 0:00:39]} Bxc6 {[%emt 0:00:07]} 17. Bg5 {[%emt 0:00:22]} h6 {[%emt 0:07:04]} 18. Bxf6 {[%emt 0:01:15]} Qxf6 {[%emt 0:00:21]} 19. Ne3 {[%emt 0:06:12]} Nd7 {[%emt 0:01:18]} 20. Qd2 {[%emt 0:07:39]} Kh7 {[%emt 0:03:36]} 21. Rad1 {[%emt 0:08:32]} Bf8 {[%emt 0:00:13]} 22. Bb3 {[%emt 0:11:15]} Nc5 {[%emt 0:03:01]} 23. Nd5 {[%emt 0:02:54]} Bxd5 {[%emt 0:08:18]} 24. Bxd5 {[%emt 0:00:17]} Ra7 {[%emt 0:01:58]} 25. Nh2 {[%emt 0:16:45]} h5 {[%emt 0:02:53]} 26. Nf1 {[%emt 0:00:47]} Bh6 {[%emt 0:03:03]} 27. Qe2 {[%emt 0:01:00]} Qg5 {[%emt 0:02:46]} 28. Ne3 {[%emt 0:03:12]} Rf8 {[%emt 0:06:08]} 29. b4 {[%emt 0:04:48]} Na4 {[%emt 0:01:02]} 30. Qc2 {[%emt 0:00:55]} Rc7 {[%emt 0:00:15]} 31. c4 {[%emt 0:00:32]} Rfc8 {[%emt 0:00:53]} 32. Qb3 {[%emt 0:01:53]} Qe7 {[%emt 0:00:37]} 33. Rd3 {[%emt 0:11:22]} Nb6 {[%emt 0:05:10]} 34. cxb5 {[%emt 0:02:44]} axb5 {[%emt 0:00:05]} 35. Qa2 {[%emt 0:01:41]} Rc1 {[%emt 0:07:19]} 36. Rxc1 {[%emt 0:04:52]} Rxc1+ {[%emt 0:00:05]} 37. Kh2 {[%emt 0:00:27]} Qf6 {[%emt 0:02:40]} 38. Qb2 {[%emt 0:04:13]} Re1 {[%emt 0:07:14]} 39. Rd1 {[%emt 0:04:48]} Rxd1 {[%emt 0:03:06]} 40. Nxd1 {[%emt 0:00:05]} Nxd5 {[%emt 0:00:11]} 41. exd5 {[%emt 0:00:09]} Qf4+ {[%emt 0:00:04]} 42. g3 {[%emt 0:03:00]} Qc4 {[%emt 0:03:24]} 43. a4 {[%emt 0:01:33]} bxa4 {[%emt 0:00:55]} 44. Nc3 {[%emt 0:01:04]} a3 {[%emt 0:00:45]} 45. Qxa3 {[%emt 0:00:52]} Bd2 {[%emt 0:00:20]} 46. Na2 Qxd5 {[%emt 0:01:38]} 47. Qb2 {[%emt 0:04:25]} h4 {[%emt 0:01:12]} 48. b5 {[%emt 0:01:10]} hxg3+ {[%emt 0:00:18]} 49. fxg3 {[%emt 0:00:12]} Qd3 {[%emt 0:01:37]} 50. b6 {[%emt 0:00:53]} Qe2+ {[%emt 0:00:06]} 51. Kh1 {[%emt 0:00:10]} Qf1+ {[%emt 0:00:05]} 52. Kh2 {[%emt 0:00:10]} Be3 {[%emt 0:03:10]} 53. Qg2 {[%emt 0:01:02]} Qxg2+ {[%emt 0:00:05]} 54. Kxg2 {[%emt 0:00:03]} Bxb6 {[%emt 0:00:06]} 55. Kf3 {[%emt 0:00:41]} f5 {[%emt 0:00:19]} 56. Nc3 {[%emt 0:00:40]} Bd4 {[%emt 0:00:28]} 57. Nb5 {[%emt 0:00:44]} e4+ {[%emt 0:01:35]} 58. Ke2 {[%emt 0:00:10]} Be5 {[%emt 0:00:58]} 59. g4 {[%emt 0:00:47]} d5 {[%emt 0:00:28]} 60. Na3 {[%emt 0:00:38]} f4 {[%emt 0:00:00]} 61. Nc2 {[%emt 0:00:01]} Bc3 {[%emt 0:00:00]} 62. Na3 {[%emt 0:00:40]} d4 {[%emt 0:00:15]} 63. Nb5 {[%emt 0:00:12]} d3+ {[%emt 0:00:05]} 64. Kd1 {[%emt 0:00:05]} Be5 {[%emt 0:00:07]} 65. Na3 {[%emt 0:00:17]} e3 {[%emt 0:00:07]} 66. Nb1 {[%emt 0:01:04]} f3 {[%emt 0:00:11]} 67. Ke1 {[%emt 0:00:09]} Bg3+ {[%emt 0:00:06]} 68. Kd1 {[%emt 0:00:12]} e2+ {[%emt 0:00:06]} 0-1